Cogmind - Beta 13 @@@ ROGUE MODE // 2024.04.17 @ 11:07:51 Player: sordeles Result: Destroyed by P-80 Master with Gamma Rifle Performance ------------- Evolutions (8) 4000 Regions Visited (12) 2400 Robots Destroyed (122) 610 Value Destroyed (3631) 3631 Prototype IDs (41) 820 Alien Tech Used (0) 0 Bonus (283) 283 TOTAL SCORE: 11744 Bonus ------- Follower Combat Kills 7 Aligned with FarCom 300 Friendly Fire -24 Cogmind --------- Core Integrity 0/1450 Matter 185/300 Energy 100/100 System Corruption 10% Temperature Cool (0) Movement Core (200) Ox3 Location -2/Research Parts ------- > --- POWER (3) -------- (None) > --- PROPULSION (8) --- (None) > --- UTILITY (9) ------ Advanced Signal Interpreter Advanced Terrain Scan Processor > --- WEAPON (3) ------- Hypervelocity Mass Driver > --- INVENTORY (5) ---- Light Particle Reactor Micro Antimatter Reactor Quantum Reactor Light Quantum Reactor Peak State ------------ > --- POWER ------------ Light Quantum Reactor > --- PROPULSION ------- Q-thruster Cooled Impulse Thruster Impulse Thruster Array Impulse Thruster Array > --- UTILITY ---------- Advanced Sensor Array Advanced Signal Interpreter Advanced Terrain Scan Processor Transmission Jammer Hacking Suite Advanced Hacking Suite Improved System Shield > --- WEAPON ----------- Enhanced Nova Cannon Advanced Datajack > --- INVENTORY -------- Fission Core Light Particle Reactor Light Quantum Reactor Centrium Leg Railgun [Rating: 109] Favorites ----------- Power Improved Deuterium Engine Engine Improved Deuterium Engine Power Core Micro Nuclear Core Reactor Light Particle Reactor Propulsion Potential Leg Treads Light Treads Leg Potential Leg Flight Unit Improved Cesium-ion Thruster Utility Hacking Suite Device Focal Shield Storage Large Storage Unit Processor Targeting Computer Hackware Hacking Suite Protection Improved Light Armor Plating Weapon Axe Energy Gun Medium Laser Energy Cannon Long-range Proton Cannon Ballistic Gun Light Assault Rifle Ballistic Cannon Battle Cannon Launcher Rocket Launcher Special Weapon Mining Laser Impact Weapon Great Maul Slashing Weapon Axe Piercing Weapon Heavy Pick Special Melee Weapon Advanced Datajack Build | -11 -10 -10 -10 -9 -8 -7 -6 -5 -5 -4 -3 -2 ------- Run | Yrd Mat Min Exi Min Mat Fac Fac Fac Ext Fac Res Res Slots Evolved 16 | . . . . . 4 2 2 2 . 2 2 2 Power 2 | . . . . . . . 1 . . 1 . . Propulsion 6 | . . . . . 2 1 1 . . . 1 1 Utility 7 | . . . . . 2 1 . 2 . 1 . 1 Weapon 1 | . . . . . . . . . . . 1 . Parts Attached 226 | 6 16 7 6 12 37 25 34 26 5 13 18 21 Power 38 | 1 4 1 . 1 4 2 9 3 2 3 4 4 Engine 14 | 1 4 1 . . 1 1 2 2 . 2 . . Core 20 | . . . . 1 3 1 7 1 2 1 3 1 Reactor 4 | . . . . . . . . . . . 1 3 Propulsion 64 | 2 2 2 2 . 9 9 11 10 1 3 9 4 Treads 2 | 2 . . . . . . . . . . . . Leg 25 | . 2 2 2 . 9 8 2 . . . . . Wheel . | . . . . . . . . . . . . . Hover . | . . . . . . . . . . . . . Flight 37 | . . . . . . 1 9 10 1 3 9 4 Utility 73 | 1 6 . . 1 16 11 11 11 2 6 3 5 Device 28 | . 1 . . . 4 . 4 7 1 5 2 4 Storage 8 | 1 4 . . . . 3 . . . . . . Processor 7 | . 1 . . . 2 1 1 1 . 1 . . Hackware 11 | . . . . . 3 . 3 2 1 . 1 1 Protection 19 | . . . . 1 7 7 3 1 . . . . Artifact . | . . . . . . . . . . . . . Weapon 51 | 2 4 4 4 10 8 3 3 2 . 1 2 8 Energy Gun 3 | 2 . . . . . . . . . . . 1 Energy Cannon 4 | . . . . . . . . . . . 2 2 Ballistic Gun 14 | . 3 3 1 3 1 . . 1 . . . 2 Ballistic Cannon 3 | . . . . 2 . . . . . . . 1 Launcher 17 | . 1 1 2 5 4 2 1 . . 1 . . Special Weapon 1 | . . . 1 . . . . . . . . . Impact Weapon 5 | . . . . . 2 . 2 1 . . . . Slashing Weapon 2 | . . . . . 1 1 . . . . . . Piercing Weapon 1 | . . . . . . . . . . . . 1 Special Melee Weapon 1 | . . . . . . . . . . . . 1 Unidentified Prototypes 6 | . . . . . 1 1 1 . . 1 1 1 Parts Lost 66 | . 1 . . . 8 3 7 7 2 14 . 24 Power 9 | . . . . . 1 1 2 . . 2 . 3 Propulsion 22 | . 1 . . . 1 1 3 1 2 5 . 8 Utility 26 | . . . . . 5 1 2 5 . 5 . 8 Weapon 9 | . . . . . 1 . . 1 . 2 . 5 Highest Loss Streak 10 | . 1 . . . 3 2 3 4 1 10 . 10 To Critical Strikes . | . . . . . . . . . . . . . Average Slot Usage (%) 87 | . 98 99 73 99 89 86 88 88 91 73 45 35 Engine 7 | . 14 14 14 10 1 6 8 5 . . . . Core 2 | . . . . 3 4 . 4 4 10 9 2 . Treads 1 | . 9 . . . . . . . . . . . Leg 21 | . 18 27 27 28 33 28 20 . . . . . Flight 6 | . . . . . . . 13 32 32 20 12 8 Device 3 | . . . . . 4 . 6 16 12 12 3 3 Storage 5 | . 14 14 14 14 . 3 3 . . . . . Processor 5 | . 12 14 14 6 2 1 . 7 11 10 9 8 Hackware 6 | . . . . . 11 4 8 10 15 14 13 8 Protection 10 | . . . . 7 15 27 13 1 . . . . Ballistic Gun 6 | . 26 22 . 15 1 . . . . . . . Launcher 2 | . . 5 1 5 5 4 1 . . . . . Impact Weapon 2 | . . . . . 6 . 2 3 5 4 . . Slashing Weapon 1 | . . . . . . 7 3 . . . . . Naked Turns . | . . . . . . . . . . . . . Heaviest Build 53 | 11 47 30 30 36 21 37 53 31 26 31 34 34 Greatest Support 140 | 40 40 25 60 60 90 120 140 36 31 34 37 47 Greatest Overweight (x) 8 | . 4 1 8 . 3 . . 1 . 3 7 3 Average Overweight (x) . | . . . . . . . . . . . . . Largest Inventory Capacity 25 | 8 20 15 15 15 15 25 10 5 5 5 5 5 Average Capacity 9 | 7 15 15 15 15 5 7 7 5 5 5 5 5 Most Carried 15 | 1 15 15 15 15 13 10 10 5 5 5 5 5 Average Carried 7 | . 10 14 14 14 4 6 7 4 4 4 1 3 Final Capacity 15 | 8 15 15 15 15 5 10 5 5 5 5 5 5 Final Carried 15 | 1 14 15 13 14 5 10 4 5 4 2 1 4 Class Distribution -------------------- 65% | Mutant 17% | Hacker-Sprinter 7% | Scavenger-Mutant 5% | Hacker-Mutant Dominant Class ---------------- Mutant | -10/Materials Mutant | -10/Mines Mutant | -10/Exiles Mutant | -9/Mines Scavenger-Mutant | -8/Materials Mutant | -7/Factory Mutant | -6/Factory Hacker-Sprinter | -5/Factory Hacker-Sprinter | -5/Extension Hacker-Sprinter | -4/Factory Hacker-Sprinter | -3/Research Mutant | -2/Research Resources | -11 -10 -10 -10 -9 -8 -7 -6 -5 -5 -4 -3 -2 ----------- Run | Yrd Mat Min Exi Min Mat Fac Fac Fac Ext Fac Res Res Matter Collected 3516 | 198 444 211 . 350 626 326 548 30 377 90 85 231 Remotely . | . . . . . . . . . . . . . Salvage Created 3266 | . 570 178 . 37 699 283 296 55 414 344 85 305 Parts 208 | . 52 14 . 10 47 13 20 2 8 11 2 29 Haulers Intercepted . | . . . . . . . . . . . . . Recyclers Shooed 2 | . . . . . . . . . . . . 2 Parts Field Recycled . | . . . . . . . . . . . . . Retrieved Matter . | . . . . . . . . . . . . . Parts Self-Destructed . | . . . . . . . . . . . . . Prevented . | . . . . . . . . . . . . . Kills | -11 -10 -10 -10 -9 -8 -7 -6 -5 -5 -4 -3 -2 ------- Run | Yrd Mat Min Exi Min Mat Fac Fac Fac Ext Fac Res Res Combat Hostiles Destroyed 85 | . 16 10 . 6 26 7 8 2 . 3 1 6 Melee 22 | . . . . . 5 5 8 1 . 1 . 2 Guns 29 | . 16 7 . . 3 . . . . . . 3 Cannons 3 | . . . . . 1 . . . . . 1 1 AOE 21 | . . 3 . 6 9 1 . . . 2 . . Classes Destroyed 14 | . 4 . . . 6 2 . . 1 1 . . Worker 15 | . . . . . 5 2 . . 2 5 . 1 Builder 8 | . . . . . 1 1 . . 4 2 . . Tunneler 2 | . . . . . 1 . . . 1 . . . Recycler 3 | . . . . . . . . . 2 1 . . Mechanic 1 | . . . . . . . . . . 1 . . Operator 2 | . 2 . . . . . . . . . . . Watcher 6 | . 3 . . . 1 . . . 1 1 . . Swarmer 31 | . 6 8 . 4 9 . 2 . . . . 2 Cutter 5 | . . . . . 3 . . 2 . . . . Grunt 28 | . 10 2 . 2 9 2 . . . 2 1 . Brawler 1 | . . . . . 1 . . . . . . . Duelist 1 | . . . . . . 1 . . . . . . Sentry 4 | . . . . . 4 . . . . . . . Programmer 15 | . . . . . . 4 6 . . 1 . 4 Best Kill Streak 9 | . 5 3 . 4 9 3 2 2 6 7 1 3 Combat Bots Only 6 | . 5 3 . 4 6 3 2 2 . 2 1 3 Max Kills in Single Turn 4 | . 1 2 . 4 3 2 1 1 1 3 1 1 Gunslinging . | . . . . . . . . . . . . . Exploded 4 | . . 2 . 4 3 1 . . . 2 . . Melee 1 | . . . . . 1 1 1 1 . 1 . 1 Uniques/NPCs Destroyed . | . . . . . . . . . . . . . Combat | -11 -10 -10 -10 -9 -8 -7 -6 -5 -5 -4 -3 -2 -------- Run | Yrd Mat Min Exi Min Mat Fac Fac Fac Ext Fac Res Res Hostile Shots Fired 690 | . 69 40 . 3 118 64 66 13 22 66 12 217 Missed 241 | . 15 9 . 1 31 17 20 6 10 23 5 104 Damage Taken 10146 | . 604 283 . 75 1724 919 880 778 274 1271 224 3114 Core 3105 | . 85 48 . 3 254 109 123 176 58 634 163 1452 Absorbed by Shields 41 | . . . . . . . . . 32 9 . . Redirected to Shielding 136 | . . . . . 17 54 8 57 . . . . Ignored by Resistances 21 | . . . . . . . 21 . . . . . Regen/Repaired (Parts) 216 | . . . . . 201 . . 15 . . . . Core Remaining (%) 71 | 100 . . . 45 53 84 85 . 76 44 87 . Volleys Fired 166 | . 78 25 7 4 25 3 . . . 1 4 19 Largest 2 | . 2 2 1 2 2 1 . . . 1 1 1 Hottest 120 | . 90 50 100 60 66 39 . . . 36 81 120 Shots Fired 301 | . 160 53 7 9 45 3 . . . 1 4 19 Gun 240 | . 160 50 . 1 16 . . . . . . 13 Cannon 26 | . . . . . 16 . . . . . 4 6 Launcher 34 | . . 3 6 8 13 3 . . . 1 . . Special 1 | . . . 1 . . . . . . . . . Kinetic 231 | . 133 50 . 1 32 . . . . . . 15 Thermal 32 | . 27 . 1 . . . . . . . . 4 Explosive 34 | . . 3 6 8 13 3 . . . 1 . . Electromagnetic 4 | . . . . . . . . . . . 4 . Robot Hit Streak 11 | . 11 6 . 3 5 . . . . 1 2 4 Robot Miss Streak 5 | . 5 2 . . 3 . . . . . 1 2 Penetration Max 1 | . . . . . . . . . . . . 1 Secondary Targets 1 | . 1 . . . . . . . . . . . Max Gunslinging Chain 1 | . 1 . . . . . . . . . . . Shots Hit Robots 266 | . 100 28 . 1 55 19 19 3 11 8 3 19 Core Hits 151 | . 40 18 . 10 36 12 5 1 1 17 2 9 Critical Kills 6 | . . . . . 3 . 1 . 1 1 . . Critical Parts Destroyed 18 | . 4 . . . 8 . 2 . 1 1 . 2 Critical Strikes 27 | . 4 . . . 11 1 3 . 2 2 . 4 Destroy 6 | . 4 . . . . . . . . . . 2 Smash 18 | . . . . . 11 . 3 . 2 2 . . Sever 1 | . . . . . . 1 . . . . . . Impale 2 | . . . . . . . . . . . . 2 Melee Attacks 273 | . . . . . 56 43 103 15 29 17 . 10 Impact 176 | . . . . . 56 . 59 15 29 17 . . Slashing 87 | . . . . . . 43 44 . . . . . Piercing 8 | . . . . . . . . . . . . 8 Sneak Attacks 22 | . . . . . 6 2 . . 8 5 . 1 Combat Hostiles 1 | . . . . . 1 . . . . . . . Follow-up Attacks . | . . . . . . . . . . . . . Damage Inflicted 10794 | . 912 487 . 393 3037 1083 866 157 1032 2037 113 677 Guns 1755 | . 906 329 . . 151 . . . . . . 369 Cannons 523 | . . . . . 229 . . . . . 113 181 Explosions 3324 | . . 158 . 393 982 385 . . . 1406 . . Melee 5185 | . . . . . 1675 698 866 157 1032 631 . 126 Ramming 7 | . 6 . . . . . . . . . . 1 Kinetic 1838 | . 716 329 . . 380 . . . . . . 413 Thermal 468 | . 190 . . 141 . . . . . . . 137 Explosive 3183 | . . 158 . 252 982 385 . . . 1406 . . Electromagnetic 113 | . . . . . . . . . . . 113 . Impact 3998 | . . . . . 1675 . 503 157 1032 631 . . Slashing 1061 | . . . . . . 698 363 . . . . . Piercing 126 | . . . . . . . . . . . . 126 Highest Corruption 23 | . 2 2 2 2 12 7 8 23 23 3 1 9 Average Corruption 5 | . 1 2 2 2 8 6 4 17 23 2 1 6 Corruption Purged . | . . . . . . . . . . . . . Corruption Blocked . | . . . . . . . . . . . . . Effects 271 | . 29 18 4 9 52 29 70 24 25 2 . 9 Message Errors 59 | . 5 2 2 2 16 4 14 6 7 . . 1 Matter Fused 71 | . 10 4 1 3 14 7 19 5 5 . . 3 Heat Flow Errors 30 | . 3 3 . 1 5 2 7 5 2 1 . 1 Energy Discharges 36 | . 4 1 . 1 9 4 9 2 4 . . 2 Parts Rejected 1 | . 1 . . . . . . . . . . . Parts Fused 2 | . . . . . . . 2 . . . . . Data Loss (minor) 36 | . . 4 . 1 3 9 13 3 2 . . 1 Data Loss (major) 16 | . 1 . 1 . 3 3 4 1 2 1 . . Misfires 9 | . 4 3 . 1 1 . . . . . . . Alerts 6 | . 1 1 . . 1 . 2 . . . . 1 Misdirections 5 | . . . . . . . . 2 3 . . . Overload Shots . | . . . . . . . . . . . . . Overflow Damage 2147 | . . 12 . 28 679 72 300 52 601 391 . 12 Projectiles . | . . . . . . . . . . . . . Explosions 169 | . . 12 . 28 44 41 . . . 44 . . Melee 1978 | . . . . . 635 31 300 52 601 347 . 12 Knockbacks 20 | . . . . . 9 . 1 1 4 2 . 3 Impact 13 | . . . . . 5 . 1 1 4 2 . . Kinetic 6 | . . . . . 4 . . . . . . 2 Secondary 1 | . . . . . . . . . . . . 1 Self-Inflicted Damage 110 | . . . . 43 67 . . . . . . . Shots 4 | . . . . 2 2 . . . . . . . Rammed 2 | . 1 . . . . . . . . . . 1 Targets Rammed 3 | . 2 . . . . . . . . . . 1 Kicked 1 | . 1 . . . . . . . . . . . Crushed . | . . . . . . . . . . . . . Highest Temperature 420 | . 262 232 20 169 324 245 227 239 135 114 41 420 Average Temperature 89 | . 88 108 10 62 133 110 61 121 65 62 10 135 Received Heat Transfer 1011 | . 195 54 . 18 333 120 . . 60 9 58 164 Effects 15 | . 1 3 . . 3 1 . 3 . . . 4 Shutdowns 1 | . . . . . . . . . . . . 1 Energy Bleed 3 | . 1 . . . . . . . . . . 2 Interference 8 | . . 3 . . 1 1 . 3 . . . . Matter Decay 2 | . . . . . 1 . . . . . . 1 Short Circuit 1 | . . . . . 1 . . . . . . . Siege Activations . | . . . . . . . . . . . . . Robots Corrupted . | . . . . . . . . . . . . . Combat Hostiles . | . . . . . . . . . . . . . Parts Fried 33 | . . . . . 9 1 1 3 15 3 1 . Impact Corruptions 60 | . . . . . 19 . 6 2 21 12 . . Robots Melted . | . . . . . . . . . . . . . Combat Hostiles . | . . . . . . . . . . . . . Parts Melted . | . . . . . . . . . . . . . Heat Transferred 781 | . 520 . . 150 . . . . . . . 111 Parts Sabotaged . | . . . . . . . . . . . . . Parts Stolen . | . . . . . . . . . . . . . Parts Stripped . | . . . . . . . . . . . . . Power Chain Reactions . | . . . . . . . . . . . . . Alert | -11 -10 -10 -10 -9 -8 -7 -6 -5 -5 -4 -3 -2 ------- Run | Yrd Mat Min Exi Min Mat Fac Fac Fac Ext Fac Res Res Peak Influence 565 | . 220 153 . 203 323 267 196 168 204 565 211 457 Initial 191 | . . 14 . . 78 135 6 95 29 99 191 118 Average 85 | . 61 39 . 66 151 87 32 72 70 176 208 212 Maximum Alert Level 2 | . 1 . . 1 1 1 . . 1 2 1 2 Low Security (%) 87 | 100 90 100 . 70 78 85 100 100 99 81 10 53 Level 1 12 | . 9 . . 29 21 14 . . . 8 89 36 Level 2 . | . . . . . . . . . . 9 . 10 Level 3 . | . . . . . . . . . . . . . Level 4 . | . . . . . . . . . . . . . Level 5 . | . . . . . . . . . . . . . High Security . | . . . . . . . . . . . . . Max Security . | . . . . . . . . . . . . . Squads Dispatched 50 | . 4 . . . 5 5 15 5 . 7 2 7 Investigation 13 | . 2 . . . 2 . 5 1 . 2 1 . Extermination 16 | . . . . . . 5 6 1 . . 1 3 Reinforcement 15 | . 2 . . . 2 . 1 3 . 3 . 4 Assault . | . . . . . . . . . . . . . Garrison 6 | . . . . . 1 . 3 . . 2 . . Intercept . | . . . . . . . . . . . . . Searches Triggered . | . . . . . . . . . . . . . Construction Impeded . | . . . . . . . . . . . . . Haulers Reinforced 2 | . . . . . . . . . . . . 2 Active Scanning Responses . | . . . . . . . . . . . . . Cargo Convoy Interrupts . | . . . . . . . . . . . . . Stealth | -11 -10 -10 -10 -9 -8 -7 -6 -5 -5 -4 -3 -2 --------- Run | Yrd Mat Min Exi Min Mat Fac Fac Fac Ext Fac Res Res Distress Signals 16 | . 1 . . . 2 1 1 . . 2 . 9 Communications Jammed 1 | . . . . . . . . . . . . 1 Distress Signals 1 | . . . . . . . . . . . . 1 Times Spotted 250 | . 36 12 . 1 39 13 19 10 17 26 2 75 Peak Tracking Total 15 | . 4 3 . 2 5 5 4 3 10 9 1 15 Tactical Retreats 45 | . 3 1 . . 5 4 2 2 3 6 . 19 Traps | -11 -10 -10 -10 -9 -8 -7 -6 -5 -5 -4 -3 -2 ------- Run | Yrd Mat Min Exi Min Mat Fac Fac Fac Ext Fac Res Res Traps Triggered 21 | . 5 . . . 2 2 5 . 2 1 1 3 Indirectly . | . . . . . . . . . . . . . Trap Hack Attempts . | . . . . . . . . . . . . . Triggered . | . . . . . . . . . . . . . Disarmed . | . . . . . . . . . . . . . Reprogrammed . | . . . . . . . . . . . . . Reused . | . . . . . . . . . . . . . Traps Extracted . | . . . . . . . . . . . . . Installed . | . . . . . . . . . . . . . Triggered . | . . . . . . . . . . . . . Machines | -11 -10 -10 -10 -9 -8 -7 -6 -5 -5 -4 -3 -2 ---------- Run | Yrd Mat Min Exi Min Mat Fac Fac Fac Ext Fac Res Res Machines Disabled 32 | . . . 1 1 3 14 . . . 13 . . Max in Single Turn 6 | . . . 1 1 1 6 . . . 4 . . Garrison Access 1 | . . . . . 1 . . . . . . . Machines Repaired . | . . . . . . . . . . . . . Machines Dismantled . | . . . . . . . . . . . . . Machines Sabotaged . | . . . . . . . . . . . . . Overloaded Fab Kills . | . . . . . . . . . . . . . Hacking | -11 -10 -10 -10 -9 -8 -7 -6 -5 -5 -4 -3 -2 --------- Run | Yrd Mat Min Exi Min Mat Fac Fac Fac Ext Fac Res Res Machines Accessed 39 | . 5 . 1 . 8 4 8 6 3 2 1 1 Terminals 23 | . 5 . . . 4 4 2 4 3 1 . . Fabricators 8 | . . . . . . . 5 1 . 1 1 . Repair Stations 3 | . . . . . 2 . . 1 . . . . Recycling Units 1 | . . . . . 1 . . . . . . . Scanalyzers 1 | . . . . . . . 1 . . . . . Garrison Access 2 | . . . . . 1 . . . . . . 1 Total Hacks 91 | . 15 . 1 . 17 7 23 14 5 6 2 1 Successful 58 | . 10 . 1 . 12 7 15 6 2 3 2 . Failed 33 | . 5 . . . 5 . 8 8 3 3 . 1 Catastrophic 1 | . . . . . . . 1 . . . . . Database Lockouts . | . . . . . . . . . . . . . Manual 2 | . . . 2 . . . . . . . . . Terminals 54 | . 15 . . . 10 7 4 9 5 4 . . Fabricators 19 | . . . . . . . 13 2 . 2 2 . Repair Stations 8 | . . . . . 5 . . 3 . . . . Recycling Units 1 | . . . . . 1 . . . . . . . Scanalyzers 6 | . . . . . . . 6 . . . . . Garrison Access 2 | . . . . . 1 . . . . . . 1 Terminal Hacks 32 | . 10 . 1 . 6 7 2 3 2 1 . . Record 1 | . 1 . . . . . . . . . . . Prototype ID Bank 6 | . 3 . . . 1 1 . . 1 . . . Open Door 1 | . . . . . . . . 1 . . . . Open DSF 2 | . . . . . . 1 . 1 . . . . Branch Access Points 1 | . . . . . 1 . . . . . . . Emergency Access Points 5 | . 2 . . . . 2 . . . 1 . . Terminal Index 1 | . 1 . . . . . . . . . . . Alert Level 5 | . . . . . 1 2 1 . 1 . . . Unreport Threat 3 | . . . . . 2 1 . . . . . . Locate Traps 2 | . 2 . . . . . . . . . . . Dispatch Records 1 | . 1 . . . . . . . . . . . Recall Investigation 2 | . . . . . . . 1 1 . . . . Zone Layout 1 | . . . . . 1 . . . . . . . Derelict Proto ID Bank 1 | . . . 1 . . . . . . . . . Fabricator Hacks 14 | . . . . . . . 9 1 . 2 2 . Load Schematic 8 | . . . . . . . 5 1 . 1 1 . Build 6 | . . . . . . . 4 . . 1 1 . Repair Station Hacks 6 | . . . . . 4 . . 2 . . . . Scan Component 3 | . . . . . 2 . . 1 . . . . Repair 3 | . . . . . 2 . . 1 . . . . Recycling Unit Hacks 1 | . . . . . 1 . . . . . . . Report Inventory 1 | . . . . . 1 . . . . . . . Scanalyzer 4 | . . . . . . . 4 . . . . . Insert Component 2 | . . . . . . . 2 . . . . . Analyze 2 | . . . . . . . 2 . . . . . Garrison Access Hacks 1 | . . . . . 1 . . . . . . . Seal Access 1 | . . . . . 1 . . . . . . . Unauthorized Hacks . | . . . . . . . . . . . . . Terminals . | . . . . . . . . . . . . . Fabricators . | . . . . . . . . . . . . . Repair Stations . | . . . . . . . . . . . . . Recycling Units . | . . . . . . . . . . . . . Scanalyzers . | . . . . . . . . . . . . . Garrison Access . | . . . . . . . . . . . . . Data Cores Recovered . | . . . . . . . . . . . . . Used . | . . . . . . . . . . . . . Hacking Detections 26 | . 4 . . . 5 2 6 4 1 2 1 1 Full Trace Events 12 | . 1 . . . 3 . 5 1 . 1 1 . Feedback Events 1 | . . . . . . . 1 . . . . . Corruption 1 | . . . . . . . 1 . . . . . Feedback Blocked . | . . . . . . . . . . . . . Robot Schematics Acquired . | . . . . . . . . . . . . . Robots Built . | . . . . . . . . . . . . . Authchips . | . . . . . . . . . . . . . Time . | . . . . . . . . . . . . . Total Robot Build Rating . | . . . . . . . . . . . . . Part Schematics Acquired 1 | . . . . . . . 1 . . . . . Parts Built 6 | . . . . . . . 4 . . 1 1 . Authchips . | . . . . . . . . . . . . . Time 603 | . . . . . . . 469 . . 67 67 . Total Part Build Rating 24 | . . . . . . . 16 . . 4 4 . Parts Repaired 3 | . . . . . 2 . . 1 . . . . Time 92 | . . . . . 54 . . 38 . . . . Parts Recycled . | . . . . . . . . . . . . . Recycled Matter . | . . . . . . . . . . . . . Retrieved Matter . | . . . . . . . . . . . . . Retrieved Components . | . . . . . . . . . . . . . Parts Scanalyzed 1 | . . . . . . . 1 . . . . . Part Schematics Acquired 1 | . . . . . . . 1 . . . . . Parts Damaged . | . . . . . . . . . . . . . Bothacking | -11 -10 -10 -10 -9 -8 -7 -6 -5 -5 -4 -3 -2 ------------ Run | Yrd Mat Min Exi Min Mat Fac Fac Fac Ext Fac Res Res Used RIF Installer . | . . . . . . . . . . . . . Robots Hacked 2 | . . . . . . . . . . . . 2 Non-combat 1 | . . . . . . . . . . . . 1 Combat 1 | . . . . . . . . . . . . 1 Robot Hacks Applied 2 | . . . . . . . . . . . . 2 parse_system 1 | . . . . . . . . . . . . 1 find_recycling 1 | . . . . . . . . . . . . 1 Relay Couplers Released . | . . . . . . . . . . . . . Fabnet Peak Effective % . | . . . . . . . . . . . . . Robots Rewired . | . . . . . . . . . . . . . Allies Hacked . | . . . . . . . . . . . . . Hacks Repelled . | . . . . . . . . . . . . . Allies | -11 -10 -10 -10 -9 -8 -7 -6 -5 -5 -4 -3 -2 -------- Run | Yrd Mat Min Exi Min Mat Fac Fac Fac Ext Fac Res Res Total Allies 2 | . . 2 . . . . . . . . . . Largest Group 2 | . . 2 . . . . . . . . . . Highest-Rated Group 42 | . . 42 . . . . . . . . . . Highest-Rated Ally 31 | . . 31 . . . . . . . . . . Total Orders . | . . . . . . . . . . . . . Ally Attacks 9 | . . 9 . . . . . . . . . . Total Damage 82 | . . 82 . . . . . . . . . . Kills 1 | . . 1 . . . . . . . . . . Allies Corrupted . | . . . . . . . . . . . . . Allies Melted . | . . . . . . . . . . . . . Intel | -11 -10 -10 -10 -9 -8 -7 -6 -5 -5 -4 -3 -2 ------- Run | Yrd Mat Min Exi Min Mat Fac Fac Fac Ext Fac Res Res Robot Analysis Total . | . . . . . . . . . . . . . Derelict Logs Recovered 4 | . . 2 . 2 . . . . . . . . Drone Launches . | . . . . . . . . . . . . . Drone Recoveries . | . . . . . . . . . . . . . Exploration | -11 -10 -10 -10 -9 -8 -7 -6 -5 -5 -4 -3 -2 ------------- Run | Yrd Mat Min Exi Min Mat Fac Fac Fac Ext Fac Res Res Turns Passed 18616 | 83 2778 1602 326 671 3224 2650 4358 774 509 405 299 937 Spaces Moved 17213 | 50 1215 768 273 696 2068 1553 4584 1961 1081 899 340 1725 Core 243 | 5 . . 1 . 1 . . . . 69 58 109 Treads 428 | 45 383 . . . . . . . . . . . Legs 7425 | . 832 768 272 696 2067 1553 1237 . . . . . Wheels . | . . . . . . . . . . . . . Hover . | . . . . . . . . . . . . . Flight 9117 | . . . . . . . 3347 1961 1081 830 282 1616 Fastest Speed 19 | 50 120 120 90 90 100 100 21 19 19 21 29 29 Average Speed 73 | 149 195 189 108 90 103 105 50 20 20 27 38 38 Slowest Speed 450 | 160 400 190 450 90 200 130 122 100 23 200 400 200 Overloaded Moves 57 | . . . . . . . . . 31 . . 26 Propulsion Burnouts . | . . . . . . . . . . . . . Robots Hopped 25 | . . . . . . . . . . . 2 23 Cave-ins Triggered 4 | . . . . . 1 1 . 2 . . . . Exploration Rate (%) 56 | 4 99 95 62 96 91 37 51 37 80 30 9 43 Regions Visited 12 Branch Regions 4 Pre-discovered Areas 2 | . . 1 . 1 . . . . . . . . Known Exits Taken 4 | . . . . . . . 1 1 . 1 1 . Unknown Exits Taken 8 | 1 1 1 1 1 1 1 . . 1 . . . Scrap Searched 4 | . . 2 . 2 . . . . . . . . Spaces Dug 148 | . . . 1 . 14 18 77 11 17 8 . 2 Terrain Destroyed 435 | . . 20 28 67 100 68 77 11 17 43 . 4 Melee 147 | . . . . . 14 18 77 11 17 8 . 2 Projectile 4 | . . . 1 . 1 . . . . . . 2 AOE 284 | . . 20 27 67 85 50 . . . 35 . . Terrain Rammed . | . . . . . . . . . . . . . Walls Destroyed . | . . . . . . . . . . . . . Machines Disabled . | . . . . . . . . . . . . . Actions | -11 -10 -10 -10 -9 -8 -7 -6 -5 -5 -4 -3 -2 --------- Run | Yrd Mat Min Exi Min Mat Fac Fac Fac Ext Fac Res Res Total 22491 | 56 1484 874 295 736 3011 2496 6457 2309 1309 1022 500 1942 Wait 4321 | . 124 59 2 11 783 832 1687 281 166 75 131 170 Move 17151 | 49 1214 767 272 695 2067 1552 4583 1960 1080 898 335 1679 Hop 25 | . . . . . . . . . . . 2 23 Pick Up 97 | 1 25 3 2 1 13 13 17 9 . 5 1 7 Fast Attach 136 | 6 13 4 2 4 25 20 16 14 2 4 8 18 Attach 89 | . 3 3 4 7 12 5 18 12 3 9 10 3 Detach 83 | . 11 5 2 10 8 9 9 9 2 6 8 4 Swap 1 | . . . . 1 . . . . . . . . Drop 120 | . 14 8 4 3 22 19 24 9 1 7 1 8 Fire 166 | . 78 25 7 4 25 3 . . . 1 4 19 Melee 273 | . . . . . 56 43 103 15 29 17 . 10 Ram 1 | . . . . . . . . . . . . 1 Kick 1 | . 1 . . . . . . . . . . . Crush 1 | . 1 . . . . . . . . . . . Escape Stasis 26 | . . . . . . . . . 26 . . . Rewire . | . . . . . . . . . . . . . Trap . | . . . . . . . . . . . . . Miscellaneous . | . . . . . . . . . . . . . Route ------- -11/Scrapyard -10/Materials (discovered 4 exits: [*Mat x3] / [*Min]) -10/Mines (discovered 3 exits: [*Mat x2] / *Exi) -10/Exiles (discovered 2 exits: [*Min x2]) -9/Mines (discovered 2 exits: *Mat x2) -8/Materials (discovered 3 exits: *Fac x3) -7/Factory (discovered 2 exits: *Fac / [*Low]) -6/Factory -5/Factory -5/Extension (discovered 2 exits: *Fac / [*Cet]) -4/Factory -3/Research -2/Research (discovered 1 exit: [*Acc]) History --------- Turn | Location | Event 29 | -11/Scrapyard | Discovered new exit (range 15) 84 | -11/Scrapyard | Entered Materials 207 | -10/Materials | Discovered new exit (range 13) 325 | -10/Materials | Build established: Mutant 388 | -10/Materials | Discovered new exit (range 16) 667 | -10/Materials | Discovered new exit (range 14) 1344 | -10/Materials | Discovered new exit (range 3) 2862 | -10/Materials | Entered Mines 2982 | -10/Mines | Learned Materials interactive machine intel 3046 | -10/Mines | Discovered new exit (range 7) 3485 | -10/Mines | Discovered new exit (range 15) 3549 | -10/Mines | Learned Materials terminal intel 3552 | -10/Mines | Learned location of Storage (-9) 3793 | -10/Mines | Core integrity fell below 50% 4083 | -10/Mines | Deemed a non-threat by the Exiles lab entrance 4084 | -10/Mines | Discovered new exit (range 5) 4464 | -10/Mines | Entered Exiles 4486 | -10/Exiles | Discovered new exit (range 15) 4528 | -10/Exiles | Met 8R-AWN 4559 | -10/Exiles | Met EX-HEX 4591 | -10/Exiles | Met EX-BIN 4608 | -10/Exiles | Aligned with FarCom system 4609 | -10/Exiles | Given EX-Vault access code 4641 | -10/Exiles | Opened EX-Vault 4653 | -10/Exiles | Found Potential Leg 4656 | -10/Exiles | Found Potential Leg 4683 | -10/Exiles | Warned to stay clear of 0b10 Research branches 4722 | -10/Exiles | Met EX-DEC 4778 | -10/Exiles | Discovered new exit (range 14) 4790 | -10/Exiles | Left Exiles lab with Potential Leg 4790 | -10/Exiles | Entered Mines 4815 | -9/Mines | Met a Derelict bent on vengeance 4898 | -9/Mines | Found a hidden stash of uninstalled traps 4911 | -9/Mines | Learned Materials stockpile data 5028 | -9/Mines | A weapon hastily lodged in a ceiling crevice suddenly fell to the ground 5055 | -9/Mines | Discovered new exit (range 14) 5265 | -9/Mines | Discovered new exit (range 13) 5397 | -9/Mines | Received a Rocket Launcher from a helpful Derelict 5461 | -9/Mines | Entered Materials 5461 | -8/Materials | Evolved 4 slots: Propulsion x2, Utility x2 5463 | -8/Materials | Loaded intel: 19 interactive machine locations 5464 | -8/Materials | Loaded intel: 12 terminal locations 5904 | -8/Materials | Build established: Hacker-Mutant 6353 | -8/Materials | Build established: Scavenger-Mutant 6386 | -8/Materials | Repaired Hrd. Light Armor Plating 6578 | -8/Materials | Discovered new exit (range 3) 7239 | -8/Materials | Discovered new exit (range 14) 7326 | -8/Materials | Crushed by falling debris 7326 | -8/Materials | System corruption reached 10% 7357 | -8/Materials | Lost 3 parts (2u1w) 7637 | -8/Materials | Build established: Mutant 8186 | -8/Materials | Discovered new exit (range 7) 8232 | -8/Materials | Garrison activated, responded to threat 8596 | -8/Materials | Repaired Carbon-fiber Leg 8685 | -8/Materials | Entered Factory 8685 | -7/Factory | Evolved 2 slots: Propulsion x1, Utility x1 8741 | -7/Factory | Identified exit to DSF 9606 | -7/Factory | Discovered new exit (range 13) 10230 | -7/Factory | Crushed by falling debris 11180 | -7/Factory | Discovered new exit (range 15) 11335 | -7/Factory | Entered another Factory area 11335 | -6/Factory | Evolved 2 slots: Power x1, Propulsion x1 11707 | -6/Factory | Discovered new exit (range 15) 12659 | -6/Factory | Garrison activated, responded to threat 13109 | -6/Factory | Fabricated Imp. Cesium-ion Thruster? 14095 | -6/Factory | Build established: Hacker-Sprinter 14113 | -6/Factory | Fabricated Imp. Cesium-ion Thruster? 15125 | -6/Factory | Fabricated Imp. Cesium-ion Thruster? 15310 | -6/Factory | Lost 3 parts (1p2n) 15557 | -6/Factory | Fabricated Imp. Cesium-ion Thruster? 15693 | -6/Factory | Identified exit to Factory 15693 | -6/Factory | Entered another Factory area 15693 | -5/Factory | Evolved 2 slots: Utility x2 15855 | -5/Factory | Identified exit to DSF 15929 | -5/Factory | Crushed by falling debris 15929 | -5/Factory | System corruption reached 10% 15960 | -5/Factory | Lost 4 parts (1n3u) 16026 | -5/Factory | Repaired Cesium-ion Thruster 16175 | -5/Factory | Crushed by falling debris 16206 | -5/Factory | Lost 3 parts (2u1w) 16332 | -5/Factory | Spotted B-75 Beast 16430 | -5/Factory | Discovered new exit (range 9) 16467 | -5/Factory | Identified exit to Extension 16467 | -5/Factory | Entered Extension 16695 | -5/Extension | Spotted B-75 Beast 16939 | -5/Extension | Discovered new exit (range 10) 16939 | -5/Extension | Discovered new exit (range 6) 16976 | -5/Extension | Entered Factory 16976 | -4/Factory | Evolved 2 slots: Power x1, Utility x1 17254 | -4/Factory | Garrison activated, responded to threat 17274 | -4/Factory | Fabricated Imp. Cesium-ion Thruster? 17280 | -4/Factory | Spotted B-86 Titan 17291 | -4/Factory | Lost 4 parts (3n1u) 17344 | -4/Factory | Core integrity fell below 50% 17355 | -4/Factory | Discovered new exit (range 6) 17365 | -4/Factory | Lost 10 parts (2p2n4u2w) 17380 | -4/Factory | Identified exit to Research 17381 | -4/Factory | Entered Research 17381 | -3/Research | Evolved 2 slots: Propulsion x1, Weapon x1 17489 | -3/Research | Fabricated Imp. Cesium-ion Thruster? 17633 | -3/Research | Discovered new exit (range 13) 17638 | -3/Research | Identified exit to Research 17680 | -3/Research | Entered another Research area 17680 | -2/Research | Evolved 2 slots: Propulsion x1, Utility x1 17716 | -2/Research | Lost 3 parts (1n1u1w) 18007 | -2/Research | Assembled infested ambush trap array 18146 | -2/Research | Spotted B-90 Cyclops 18262 | -2/Research | Lost 10 parts (2p2n4u2w) 18386 | -2/Research | Core integrity fell below 50% 18419 | -2/Research | Lost 5 parts (3n2w) 18434 | -2/Research | Core integrity fell below 20% 18443 | -2/Research | Discovered new exit (range 15) 18475 | -2/Research | Spotted B-90 Cyclops 18547 | -2/Research | Build established: Mutant 18617 | -2/Research | Destroyed by P-80 Master with Gamma Rifle Last Messages --------------- Connecting with Terminal... System corrupted: Heat flow error (+253). R-10 Processor inserts Sml. Battery into recycling unit. ALERT: Cargo convoy en route, clear transfer corridor. 0LZLI,A5RI5FAQXI47UU8B,QS :E Slug penetrates Wall. Acquired Hyp. Mass Driver. Nuclear Pulse Array destroyed. System corrupted: Matter fused (-8). Dropped Hyp. Mass Driver. Acquired Hyp. Mass Driver. P-80 Master suffers critical hit (Destroy). Destroyed Imp. Antigrav System. P-80 Master knocked back. G-73 Enforcer suffers critical hit (Destroy). Destroyed Myomer Leg. G-73 Enforcer knocked back. [Achievement: 10k Club] Map ----- +----------------------------------------------------+ | ???????????????????????# #???????????? | | ???????????????????????# #####????????????????? | | ???????????????????????# #????????????????????? | | ???????????????????????# #????????????????????? | | ####???????????????????# #???????????????###??? | | ???????????????????## ########## | | ???????????????????+ + | | """???????????????????#### ######### | | """"?????????????????????#h #? =/ #??????? | | """" #??????? ?????????#h # ! #????????????? | | #????? ###+##### # #????????????? | | #????? + #????????????? | | ########?????????# # !#????????????? | | ?????????????????# # #????????????? | | ??????????????#]]] #+######????????????? | | ?????????????#]]] #?????????????????? | | #??????????#]]] #?????????????????? | | # #??????????# #?????????????????? | | ??#+###??????????# #?????????????????? | | ???? ????????????# #?????????????????? | | ?????????????????###+######b #?????????????????? | | ??????????????????????????#p #?????????????????? | | ??????????????????????????#g #??????o??????????? | | ??????????????????????????#g #?????????????????? | | ??????????????????????#####/##+##????????????????? | | ??????????????????????# @pg% #????????????????? | | ??????????????????????# p #????????????????? | | ??????????????????????# #????????????????? | | ??????????????????????# #????????????????? | | ??????????????????????###########????????????????? | | ?????????????????????????????????????????????????? | | ?????????????????????????????????????????????????? | | ?????????????????????????????????????????????????? | | ???????????????????Y?????????????????????????????? | | ?????????????????????????????????????????????????? | | ?????????????????????????????????????????????????? | | ?????????????????????????????????????????????????? | | ?????????????????????????????????????????????????? | | ?????????????????????????????????????????????????? | | ?????????????????????????????????????????????????? | | ?????????????????????????????????????????????????? | | ?????????????????????????????????????????????????? | | ?????????????????????????????????????????????????? | | ?????????????????????????????????????????????????? | | ?????????????????????????????????????????????????? | | ?????????????????????????????????????????????????? | | ?????????????????????????????????????????????????? | | ?????????????????????????????????????????????????? | | ##?????#?????????????????????????????????????????? | | ### #?????????????????????????????????????????? | +----------------------------------------------------+ Best States ------------- Heat Dissipation 94 Energy Generation 41 Energy Capacity 480 Matter Stores 300 Matter Capacity 300 Sight Range 20 Robot Scan Range 16 Terrain Scan Density 210 ECM Strength 1 Jamming Range 14 Armor Coverage 375 Resistance: KI 20 Core Shielding 20 Utility Shielding 66 Point Defense Rating 80 Evasion (%) 75 Targeting Accuracy 6 Melee Accuracy 5 Recoil Reduction 2 Offensive Hacking 24 Defensive Hacking 20 Item Schematics ----------------- Imp. Cesium-ion Thruster | -6/Factory | Scanalyzed Robot Schematics ------------------ None Fabricated ------------ Imp. Cesium-ion Thruster | x1 | -6/Factory Imp. Cesium-ion Thruster | x1 | -6/Factory Imp. Cesium-ion Thruster | x1 | -6/Factory Imp. Cesium-ion Thruster | x1 | -6/Factory Imp. Cesium-ion Thruster | x1 | -4/Factory Imp. Cesium-ion Thruster | x1 | -3/Research Alien Tech Used ----------------- None Achievements -------------- 10k Club Can't Catch Me Dangerous Findings Dodgeball, But With Guns Everything Is Under Control GoHome() I Spy Just What I Needed Maybe Next Time I'll Detach My Launcher Part-time Excavator Respectable Loadout Safety First Serviceable Loadout System Compromised Unlikely Earthworm Challenges ------------ None Game ------ Seed SurgeLargeWell Manual? 0 Play Time 04:22:25 Cumulative 10.2 hours Start 2024.04.16 @ 16:15:21 End 2024.04.17 @ 11:07:51 Sessions 5 Manual Loads 0 Difficulty Rogue Special Mode None Game No. 10 Rogue 10 Adventurer 0 Explorer 0 Win Type - Total 0 Types 0/0/0/0/0/0/0/0/0 Lore% 2 Gallery% 16 Achievement% 13 Wizard Run 0 Options --------- Layout 1 ASCII 0 Keyboard 1 Movement Numpad Keybinds 0 Fullscreen 1 Font 32/Terminus Map View 50x35 Zoom Use 0% Tactical HUD 0 Map Filters NONE Filters NONE Steam 1 RUN: ddabd5b7-a8d2-46d5-b93f-6e329a86dc2b